lending/lending_fUSD_20251218
["ID","MTS","AMOUNT","RATE_DAILY","PERIOD"]
[398962312,1766027443571,-269.66516924,0.00022957,2]
[398962313,1766027443583,-313.01726312,0.00023,2]
[398962314,1766027443593,-160.31628985,0.00023072,2]
[398962315,1766027443603,-1000.0,0.00023091,2]
[398962316,1766027443612,-154.42,0.00023661,2]
[398962317,1766027443622,-151.52,0.00023746,2]
[398962318,1766027443632,-1000.0,0.000239,2]
[398962319,1766027443643,-1600.0,0.00023924,2]
[398962320,1766027443653,-249.60807767,0.00024034,2]
[398962321,1766027443662,-332.1953808,0.00024077,2]
[398962322,1766027443672,-1344.9913614,0.00024134,2]
[398962323,1766027443682,-500.0,0.0002415,2]
[398962324,1766027443691,-1692.1465397,0.00024154,2]
[398962325,1766027443700,-2360.0419739,0.00024232,2]
[398962326,1766027443709,-12012.616894,0.00024269,2]
[398962327,1766027443719,-26928.5893551,0.00024278,2]
[398962328,1766027443728,-26670.0167088,0.00024303,2]
[398962329,1766027443738,-154.42,0.00024371,2]
[398962330,1766027443747,-2000.0,0.000244,2]
[398962331,1766027443756,-500.0,0.00024514,2]
[398962332,1766027443765,-500.0,0.00024514,2]
[398962333,1766027443775,-500.0,0.00024514,2]
[398962334,1766027443784,-526.53,0.00024514,2]
[398962335,1766027443794,-500.0,0.00024514,2]
[398962336,1766027443803,-778.42,0.00024658,30]
[398962337,1766027443812,-1000.0,0.00024658,2]
[398962338,1766027443822,-417.3,0.00024658,4]
[398962339,1766027443831,-437.1,0.00024658,2]
[398962340,1766027443841,-368.1,0.00024658,3]
[398962341,1766027443850,-300.0,0.00024658,3]
[398962342,1766027443860,-500.0,0.00024799,2]
[398962343,1766027443870,-500.0,0.00024799,2]
[398962344,1766027443879,-160.31628985,0.00024799,2]
[398962345,1766027443889,-332834.783598,0.000248,3]
[398962346,1766027443899,-500.0,0.00024899,2]
[398962347,1766027443911,-5860.91851716,0.000249,3]
[398962348,1766027443921,-7959.20493029,0.00024918,2]
[398962349,1766027443931,-158.75317074,0.00024982,2]
[398962350,1766027443940,-1096.5963496,0.0002499,2]
[398962351,1766027443950,-360.14623993,0.00024999,2]
[398962352,1766027443959,-500.0,0.00024999,2]
[398962353,1766027443968,-508.09122419,0.00024999,2]
[398962354,1766027443978,-500.0,0.00024999,2]
[398962355,1766027443988,-161.0,0.00025,14]
[398962356,1766027443998,-3529.12516732,0.00025,2]
[398962357,1766027444008,-115970.74356012,0.00025,2]
[398962358,1766027444018,-154.42,0.00025082,2]
[398962359,1766027444029,-512.97175847,0.00025138,2]
[398962360,1766027444040,-500.0,0.00025138,2]
[398962361,1766027444050,-507.07906874,0.00025138,2]
[398962362,1766027444060,-500.0,0.00025138,2]
[398962363,1766027444071,-1000.0,0.0002519,2]
[398962364,1766027444082,-296.39895105,0.0002523,2]
[398962365,1766027444091,-502.0,0.00025452,2]
[398962366,1766027444100,-7248.19034838,0.00025459,2]
[398962367,1766027444111,-299.0,0.000255,2]
[398962368,1766027444121,-1326.114,0.00025736,2]
[398962369,1766027444131,-613.357,0.00025736,2]
[398962370,1766027444142,-1759.253,0.00025736,2]
[398962371,1766027444152,-1607.0,0.00025736,2]
[398962372,1766027444162,-1199.092,0.00025736,2]
[398962373,1766027444172,-4818.042,0.00025736,2]
[398962374,1766027444184,-2439.55,0.00025736,2]
[398962375,1766027444194,-564.433,0.00025736,2]
[398962376,1766027444204,-284.18,0.0002599,2]
[398962377,1766027444214,-1600.0,0.00026098,120]
[398962378,1766027444223,-670.93,0.00026676,2]
[398962379,1766027444233,-249.60807761,0.00026862,2]
[398962380,1766027444243,-500.0,0.00026999,2]
[398962381,1766027444252,-500.0,0.00026999,2]
[398962382,1766027444264,-500.0,0.00026999,2]
[398962383,1766027444276,-526.53,0.00026999,2]
[398962384,1766027444286,-500.0,0.00026999,2]
[398962385,1766027444296,-3809.028664,0.00027,2]
[398962386,1766027444305,-150.0,0.00027369,2]
[398962387,1766027444315,-1000.0,0.00027397,2]
[398962388,1766027444325,-1000.0,0.00027397,2]
[398962389,1766027444335,-1000.0,0.00027397,2]
[398962390,1766027444344,-711.89815711,0.00027397,2]
[398962391,1766027444354,-479.14826039,0.00027397,7]
[398962392,1766027444363,-150.0,0.00027397,7]
[398962393,1766027444372,-500.0,0.00027397,14]
[398962394,1766027444382,-300.0,0.00027397,2]
[398962395,1766027444391,-1437.85,0.00027397,2]
[398962396,1766027444402,-517.3,0.00027423,2]
[398962397,1766027444412,-7959.20493029,0.00027598,2]
[398962398,1766027444421,-6255.2,0.00027671,2]
[398962399,1766027444431,-7248.19034838,0.00028048,2]
[398962400,1766027444441,-2000.0,0.000281,2]
[398962401,1766027444450,-168.0,0.00028162,2]
[398962402,1766027444460,-168.0,0.00028342,2]
[398962403,1766027444469,-168.0,0.00028694,2]
[398962404,1766027444478,-168.0,0.00028722,2]
[398962405,1766027444487,-168.0,0.00028733,2]
[398962406,1766027444496,-1325.0,0.00028736,2]
[398962407,1766027444505,-1606.383,0.00028736,2]
[398962408,1766027444515,-2427.0,0.00028736,2]
[398962409,1766027444524,-563.0,0.00028736,2]
[398962410,1766027444533,-168.0,0.00028758,2]
[398962411,1766027444542,-168.0,0.00028835,2]
[398962412,1766027444552,-168.0,0.0002893,2]
[398962413,1766027444561,-168.0,0.00029109,7]
[398962414,1766027444570,-168.0,0.00029161,2]
[398962415,1766027444580,-168.0,0.0002924,2]
[398962416,1766027444590,-161.25906309,0.00029302,60]
[398962417,1766027444599,-500.0,0.00029312,60]
[398962418,1766027444609,-500.0,0.00029312,60]
[398962419,1766027444618,-168.0,0.00029377,2]
[398962420,1766027444627,-168.0,0.00029396,2]
[398962421,1766027444637,-778.42,0.00029492,30]
[398962422,1766027444646,-500.0,0.00029512,30]
[398962423,1766027444655,-189.45,0.00029585,2]
[398962424,1766027444664,-168.0,0.00029592,2]
[398962425,1766027444674,-168.0,0.00029617,2]
[398962426,1766027444683,-249.60807761,0.00029689,2]
[398962427,1766027444692,-168.0,0.00029739,2]
[398962428,1766027444701,-168.0,0.00029747,2]
[398962429,1766027444711,-168.0,0.00029762,2]
[398962430,1766027444720,-168.0,0.00029823,2]
[398962431,1766027444729,-189.45,0.00029931,2]
[398962432,1766027444738,-168.0,0.00029976,2]
[398962433,1766027444749,-3500.0,0.0003,2]
[398962434,1766027444759,-165.0,0.0003,30]
[398962435,1766027444768,-167.9687294,0.0003,30]
[398962436,1766027444777,-16781.21245706,0.0003,120]
[398962437,1766027444786,-556.4,0.00030137,25]
[398962438,1766027444796,-582.8,0.00030137,22]
[398962439,1766027444806,-490.8,0.00030137,21]
[398962440,1766027444817,-400.0,0.00030137,23]
[398962441,1766027444827,-168.0,0.00030148,2]
[398962442,1766027444838,-7959.20493029,0.00030277,2]
[398962443,1766027444848,-269.0,0.00030419,2]
[398962444,1766027444857,-168.0,0.00030549,2]
[398962445,1766027444867,-7248.19034838,0.00030638,2]
[398962446,1766027444877,-336.28,0.000308,30]
[398962447,1766027444888,-168.0,0.00030852,2]
[398962448,1766027444898,-168.0,0.0003088,2]
[398962449,1766027444910,-2427.0,0.00031736,2]
[398962450,1766027444920,-2000.0,0.000318,2]
[398962451,1766027444933,-249.60807761,0.00032517,2]
[398962452,1766027444942,-500.0,0.00032766,60]
[398962453,1766027444952,-10000.0,0.00032777,2]
[398962454,1766027444962,-307.0,0.00032849,2]
[398962455,1766027445395,-500.0,0.00032856,45]
[398962456,1766027445405,-500.0,0.00032876,60]
[398962457,1766027445414,-500.34803873,0.00032877,2]
[398962458,1766027445424,-151.0,0.00032877,10]
[398962459,1766027445434,-151.0,0.00032877,31]
[398962460,1766027445443,-237.233015,0.00032877,31]
[398962461,1766027445452,-151.0,0.00032877,31]
[398962462,1766027445461,-151.0,0.00032877,31]
[398962463,1766027445471,-151.0,0.00032877,31]
[398962464,1766027445480,-269.927237,0.00032877,31]
[398962465,1766027445489,-151.0,0.00032877,31]
[398962466,1766027445498,-151.0,0.00032877,31]
[398962467,1766027445507,-200.875141,0.00032877,31]
[398962468,1766027445516,-199.528693,0.00032877,31]
[398962469,1766027445526,-151.974666,0.00032877,30]
[398962471,1766027445535,-194.004589,0.00032877,31]
[398962473,1766027445545,-151.0,0.00032877,31]
[398962474,1766027445554,-186.079402,0.00032877,31]
[398962475,1766027445564,-151.0,0.00032877,31]
[398962476,1766027445573,-192.170726,0.00032877,31]
[398962477,1766027445582,-151.0,0.00032877,31]
[398962478,1766027445592,-204.10156,0.00032877,31]
[398962479,1766027445601,-151.0,0.00032877,31]
[398962480,1766027445610,-156.228241,0.00032877,31]
[398962481,1766027445620,-162.831937,0.00032877,31]
[398962482,1766027445633,-151.0,0.00032877,31]
[398962483,1766027445642,-216.347026,0.00032877,31]
[398962484,1766027445652,-206.238552,0.00032877,31]
[398962485,1766027445662,-151.0,0.00032877,31]
[398962486,1766027445671,-151.0,0.00032877,31]
[398962487,1766027445681,-151.0,0.00032877,31]
[398962488,1766027445691,-151.0,0.00032877,31]
[398962489,1766027445700,-151.0,0.00032877,31]
[398962490,1766027445710,-151.0,0.00032877,31]
[398962491,1766027445720,-151.0,0.00032877,31]
[398962492,1766027445731,-186.362082,0.00032877,31]
[398962493,1766027445740,-235.762982,0.00032877,31]
[398962494,1766027445750,-235.762982,0.00032877,31]
[398962495,1766027445760,-235.762982,0.00032877,31]
[398962496,1766027445769,-235.762982,0.00032877,31]
[398962497,1766027445779,-235.762982,0.00032877,31]
[398962498,1766027445789,-235.762982,0.00032877,31]
[398962499,1766027445798,-235.762982,0.00032877,31]
[398962500,1766027445807,-235.762982,0.00032877,31]
[398962501,1766027445816,-235.762982,0.00032877,31]
[398962502,1766027445826,-235.762982,0.00032877,31]
[398962503,1766027445835,-235.762982,0.00032877,31]
[398962504,1766027445845,-235.762982,0.00032877,31]
[398962505,1766027445854,-235.762982,0.00032877,31]
[398962506,1766027445864,-235.762982,0.00032877,31]
[398962507,1766027445873,-235.762982,0.00032877,31]
[398962508,1766027445882,-235.762982,0.00032877,31]
[398962509,1766027445891,-235.762982,0.00032877,31]
[398962510,1766027445900,-235.762982,0.00032877,31]
[398962511,1766027445913,-235.762982,0.00032877,31]
[398962512,1766027445923,-235.762978,0.00032877,31]
[398962513,1766027445932,-151.692712,0.00032877,31]
[398962514,1766027445941,-212.61185,0.00032877,31]
[398962515,1766027445951,-236.0073,0.00032877,31]
[398962516,1766027445960,-151.0,0.00032877,31]
[398962517,1766027445969,-151.0,0.00032877,31]
[398962518,1766027445979,-151.0,0.00032877,31]
[398962519,1766027445988,-151.0,0.00032877,31]
[398962520,1766027445997,-151.0,0.00032877,31]
[398962521,1766027446007,-177.377278,0.00032877,31]
[398962522,1766027446016,-151.0,0.00032877,31]
[398962523,1766027446026,-151.0,0.00032877,31]
[398962524,1766027446036,-151.0,0.00032877,31]
[398962525,1766027446047,-262.72216,0.00032877,31]
[398962526,1766027446057,-151.0,0.00032877,31]
[398962527,1766027446067,-151.0,0.00032877,31]
[398962528,1766027446078,-167.509191,0.00032877,31]
[398962529,1766027446088,-151.0,0.00032877,31]
[398962530,1766027446096,-220.428251,0.00032877,31]
[398962531,1766027446106,-151.0,0.00032877,31]
[398962532,1766027446115,-151.0,0.00032877,31]
[398962533,1766027446124,-151.0,0.00032877,31]
[398962534,1766027446134,-157.07501,0.00032877,31]
[398962535,1766027446146,-210.609152,0.00032877,31]
[398962536,1766027446156,-151.0,0.00032877,31]
[398962537,1766027446165,-151.0,0.00032877,31]
[398962538,1766027446174,-152.02506,0.00032877,31]
[398962539,1766027446184,-160.502188,0.00032877,31]
[398962540,1766027446195,-151.0,0.00032877,31]
[398962541,1766027446204,-151.0,0.00032877,31]
[398962542,1766027446213,-151.0,0.00032877,31]
[398962543,1766027446224,-151.0,0.00032877,31]
[398962544,1766027446234,-151.0,0.00032877,31]
[398962545,1766027446243,-151.0,0.00032877,31]
[398962546,1766027446253,-151.0,0.00032877,31]
[398962547,1766027446263,-265.269476,0.00032877,31]
[398962549,1766027446272,-204.492789,0.00032877,31]
[398962551,1766027446283,-151.0,0.00032877,31]
[398962552,1766027446292,-151.0,0.00032877,31]
[398962553,1766027446302,-151.0,0.00032877,31]
[398962554,1766027446311,-151.0,0.00032877,31]
[398962555,1766027446320,-151.0,0.00032877,31]
[398962556,1766027446330,-151.0,0.00032877,31]
[398962557,1766027446339,-151.0,0.00032877,31]
[398962558,1766027446349,-151.0,0.00032877,31]
[398962559,1766027446358,-151.0,0.00032877,31]
[398962560,1766027446367,-151.0,0.00032877,31]
[398962561,1766027446376,-151.0,0.00032877,31]
[398962562,1766027446385,-264.543915,0.00032877,31]
[398962563,1766027446394,-156.594267,0.00032877,31]
[398962564,1766027446404,-162.807791,0.00032877,31]
[398962565,1766027446413,-151.0,0.00032877,31]
[398962566,1766027446423,-151.0,0.00032877,31]
[398962567,1766027446432,-151.0,0.00032877,31]
[398962568,1766027446441,-151.534105,0.00032877,31]
[398962569,1766027446451,-151.0,0.00032877,31]
[398962570,1766027446460,-151.0,0.00032877,31]
[398962571,1766027446470,-233.49942,0.00032877,31]
[398962572,1766027446479,-433.963548,0.00032877,31]
[398962573,1766027446487,-433.963548,0.00032877,31]
[398962574,1766027446496,-433.963548,0.00032877,31]
[398962575,1766027446506,-433.963548,0.00032877,31]
[398962576,1766027446515,-433.963548,0.00032877,31]
[398962577,1766027446524,-433.963548,0.00032877,31]
[398962578,1766027446533,-433.963548,0.00032877,31]
[398962579,1766027446542,-433.963548,0.00032877,31]
[398962580,1766027446551,-433.963548,0.00032877,31]
[398962581,1766027446561,-433.963548,0.00032877,31]
[398962582,1766027446570,-433.963548,0.00032877,31]
[398962583,1766027446579,-433.963548,0.00032877,31]
[398962584,1766027446588,-433.963548,0.00032877,31]
[398962585,1766027446597,-433.963548,0.00032877,31]
[398962586,1766027446607,-433.963548,0.00032877,31]
[398962587,1766027446616,-433.963548,0.00032877,31]
[398962588,1766027446626,-433.963548,0.00032877,31]
[398962589,1766027446635,-433.963548,0.00032877,31]
[398962590,1766027446644,-151.0,0.00032877,31]
[398962591,1766027446654,-433.963548,0.00032877,31]
[398962592,1766027446663,-151.0,0.00032877,31]
[398962593,1766027446673,-433.963556,0.00032877,31]
[398962594,1766027446682,-151.0,0.00032877,31]
[398962595,1766027446691,-151.0,0.00032877,31]
[398962596,1766027446702,-151.0,0.00032877,31]
[398962597,1766027446718,-151.0,0.00032877,31]
[398962598,1766027446728,-151.0,0.00032877,31]
[398962599,1766027446737,-151.0,0.00032877,31]
[398962600,1766027446747,-151.0,0.00032877,31]
[398962601,1766027446757,-151.0,0.00032877,31]
[398962602,1766027446768,-151.0,0.00032877,31]
[398962603,1766027446777,-151.0,0.00032877,31]
[398962604,1766027446788,-151.0,0.00032877,31]
[398962605,1766027446810,-151.0,0.00032877,31]
[398962606,1766027446821,-151.0,0.00032877,31]
[398962607,1766027446831,-151.0,0.00032877,31]
[398962608,1766027446840,-151.0,0.00032877,31]
[398962609,1766027446851,-151.0,0.00032877,31]
[398962610,1766027446860,-151.0,0.00032877,31]
[398962611,1766027446869,-283.911766,0.00032877,31]
[398962612,1766027446880,-151.0,0.00032877,31]
[398962613,1766027446890,-151.0,0.00032877,31]
[398962614,1766027446899,-151.0,0.00032877,31]
[398962615,1766027446911,-151.0,0.00032877,31]
[398962616,1766027446921,-151.0,0.00032877,31]
[398962617,1766027446930,-151.0,0.00032877,31]
[398962618,1766027446940,-151.0,0.00032877,31]
[398962619,1766027446950,-151.0,0.00032877,31]
[398962620,1766027446959,-151.0,0.00032877,31]
[398962621,1766027446968,-233.264541,0.00032877,31]
[398962622,1766027446977,-151.0,0.00032877,31]
[398962623,1766027446987,-151.0,0.00032877,31]
[398962624,1766027446996,-155.153301,0.00032877,31]
[398962625,1766027447006,-155.153301,0.00032877,31]
[398962626,1766027447016,-207.403111,0.00032877,31]
[398962627,1766027447026,-155.153301,0.00032877,31]
[398962628,1766027447035,-162.411367,0.00032877,31]
[398962629,1766027447045,-151.0,0.00032877,31]
[398962630,1766027447055,-155.153301,0.00032877,31]
[398962631,1766027447064,-151.0,0.00032877,31]
[398962632,1766027447074,-155.153301,0.00032877,31]
[398962633,1766027447083,-236.608477,0.00032877,31]
[398962634,1766027447092,-155.153301,0.00032877,31]
[398962635,1766027447102,-155.153301,0.00032877,31]
[398962636,1766027447111,-155.153301,0.00032877,31]
[398962637,1766027447121,-155.153301,0.00032877,31]
[398962638,1766027447130,-155.153301,0.00032877,31]
[398962639,1766027447139,-151.0,0.00032877,31]
[398962640,1766027447148,-155.153301,0.00032877,31]
[398962641,1766027447158,-151.0,0.00032877,31]
[398962642,1766027447168,-155.153301,0.00032877,31]
[398962643,1766027447178,-155.153301,0.00032877,31]
[398962644,1766027447187,-180.806476,0.00032877,31]
[398962645,1766027447196,-155.153301,0.00032877,31]
[398962646,1766027447206,-151.0,0.00032877,31]
[398962647,1766027447215,-155.153301,0.00032877,31]
[398962648,1766027447224,-151.0,0.00032877,31]
[398962649,1766027447234,-155.153301,0.00032877,31]
[398962650,1766027447243,-151.0,0.00032877,31]
[398962651,1766027447253,-151.0,0.00032877,31]
[398962652,1766027447262,-155.153301,0.00032877,31]
[398962653,1766027447271,-156.146754,0.00032877,31]
[398962654,1766027447280,-155.153301,0.00032877,31]
[398962655,1766027447290,-151.0,0.00032877,31]
[398962656,1766027447300,-155.153301,0.00032877,31]
[398962657,1766027447309,-166.846635,0.00032877,31]
[398962658,1766027447318,-155.15331,0.00032877,31]
[398962659,1766027447328,-2472.102441,0.00032877,31]
[398962660,1766027447338,-2472.102441,0.00032877,31]
[398962661,1766027447347,-2472.102441,0.00032877,31]
[398962662,1766027447356,-291.928501,0.00032877,31]
[398962663,1766027447366,-2472.102441,0.00032877,31]
[398962664,1766027447376,-151.0,0.00032877,31]
[398962665,1766027447386,-291.928501,0.00032877,31]
[398962666,1766027447395,-2472.102441,0.00032877,31]
[398962667,1766027447405,-151.0,0.00032877,31]
[398962668,1766027447415,-291.928501,0.00032877,31]
[398962669,1766027447424,-2472.102441,0.00032877,31]
[398962670,1766027447433,-151.0,0.00032877,31]
[398962671,1766027447443,-291.928501,0.00032877,31]
[398962672,1766027447453,-2472.102441,0.00032877,31]
[398962673,1766027447463,-151.0,0.00032877,31]
[398962674,1766027447472,-291.928501,0.00032877,31]
[398962675,1766027447484,-2472.102441,0.00032877,31]
[398962676,1766027447494,-151.0,0.00032877,31]
[398962677,1766027447504,-291.928501,0.00032877,31]
[398962678,1766027447513,-2472.102441,0.00032877,31]
[398962679,1766027447523,-151.0,0.00032877,31]
[398962680,1766027447533,-291.928501,0.00032877,31]
[398962681,1766027447543,-2472.102441,0.00032877,31]
[398962682,1766027447552,-151.0,0.00032877,31]
[398962683,1766027447562,-2472.102441,0.00032877,31]
[398962684,1766027447572,-291.928501,0.00032877,31]
[398962685,1766027447582,-151.0,0.00032877,31]
[398962686,1766027447591,-2472.102441,0.00032877,31]
[398962687,1766027447600,-291.928501,0.00032877,31]
[398962688,1766027447610,-151.0,0.00032877,31]
[398962689,1766027447619,-2472.102441,0.00032877,31]
[398962690,1766027447628,-291.928501,0.00032877,31]
[398962691,1766027447637,-151.0,0.00032877,31]
[398962692,1766027447647,-2472.102441,0.00032877,31]
[398962693,1766027447659,-151.0,0.00032877,31]
[398962694,1766027447669,-291.928501,0.00032877,31]
[398962695,1766027447679,-291.928501,0.00032877,31]
[398962696,1766027447688,-2472.102441,0.00032877,31]
[398962697,1766027447697,-151.0,0.00032877,31]
[398962698,1766027447706,-291.928501,0.00032877,31]
[398962699,1766027447860,-2472.102441,0.00032877,31]
[398962700,1766027447870,-291.928501,0.00032877,31]
[398962701,1766027447879,-2472.102441,0.00032877,31]
[398962702,1766027447888,-214.976065,0.00032877,31]
[398962703,1766027447898,-291.928501,0.00032877,31]
[398962704,1766027447908,-2472.102441,0.00032877,31]
[398962705,1766027447919,-291.928501,0.00032877,31]
[398962706,1766027447928,-2472.102441,0.00032877,31]
[398962707,1766027447938,-291.928501,0.00032877,31]
[398962708,1766027447948,-2472.102434,0.00032877,31]
[398962709,1766027447958,-291.928501,0.00032877,31]
[398962710,1766027447968,-291.928501,0.00032877,31]
[398962711,1766027447979,-291.928496,0.00032877,31]
[398962712,1766027447988,-162.540842,0.00032877,31]
[398962713,1766027447997,-151.0,0.00032877,31]
[398962714,1766027448006,-151.0,0.00032877,31]
[398962715,1766027448016,-151.0,0.00032877,31]
[398962716,1766027448025,-220.157501,0.00032877,31]
[398962717,1766027448034,-151.0,0.00032877,31]
[398962718,1766027448043,-151.0,0.00032877,31]
[398962719,1766027448053,-151.0,0.00032877,31]
[398962720,1766027448062,-151.0,0.00032877,31]
[398962721,1766027448071,-151.0,0.00032877,31]
[398962722,1766027448080,-151.0,0.00032877,31]
[398962723,1766027448089,-151.0,0.00032877,31]
[398962724,1766027448099,-151.0,0.00032877,31]
[398962725,1766027448108,-151.0,0.00032877,31]
[398962726,1766027448118,-151.0,0.00032877,31]
[398962727,1766027448127,-151.0,0.00032877,31]
[398962728,1766027448136,-151.0,0.00032877,31]
[398962729,1766027448147,-297.559811,0.00032877,31]
[398962730,1766027448156,-151.0,0.00032877,31]
[398962731,1766027448165,-166.139437,0.00032877,31]
[398962732,1766027448174,-273.844195,0.00032877,31]
[398962733,1766027448183,-175.216412,0.00032877,31]
[398962734,1766027448193,-151.0,0.00032877,31]
[398962735,1766027448202,-151.0,0.00032877,31]
[398962736,1766027448212,-151.0,0.00032877,31]
[398962737,1766027448221,-151.0,0.00032877,31]
[398962738,1766027448232,-151.0,0.00032877,31]
[398962739,1766027448242,-151.0,0.00032877,31]
[398962740,1766027448252,-151.0,0.00032877,31]
[398962741,1766027448262,-181.540057,0.00032877,31]
[398962742,1766027448271,-151.0,0.00032877,31]
[398962743,1766027448280,-199.359926,0.00032877,31]
[398962744,1766027448289,-151.0,0.00032877,31]
[398962745,1766027448298,-151.0,0.00032877,31]
[398962746,1766027448307,-151.000019,0.00032877,31]
[398962747,1766027448316,-187.300974,0.00032877,31]
[398962748,1766027448326,-151.0,0.00032877,31]
[398962749,1766027448335,-151.0,0.00032877,31]
[398962750,1766027448344,-151.0,0.00032877,31]
[398962751,1766027448353,-151.0,0.00032877,31]
[398962752,1766027448363,-151.0,0.00032877,31]
[398962753,1766027448371,-151.0,0.00032877,31]
[398962754,1766027448380,-151.0,0.00032877,31]
[398962755,1766027448389,-151.0,0.00032877,31]
[398962756,1766027448398,-151.0,0.00032877,31]
[398962757,1766027448407,-150.0,0.00032877,2]
[398962758,1766027448415,-500.0,0.00032877,7]
[398962759,1766027448424,-500.0,0.00032877,7]
[398962760,1766027448433,-500.0,0.00032877,7]
[398962761,1766027448442,-500.0,0.00032877,7]
[398962762,1766027448451,-500.0,0.00032877,7]
[398962763,1766027448460,-500.0,0.00032877,7]
[398962764,1766027448469,-500.0,0.00032877,7]
[398962765,1766027448478,-500.0,0.00032877,7]
[398962766,1766027448488,-500.0,0.00032877,7]
[398962767,1766027448497,-500.0,0.00032877,7]
[398962768,1766027448506,-500.0,0.00032877,7]
[398962769,1766027448515,-500.0,0.00032877,7]
[398962770,1766027448524,-500.0,0.00032877,7]
[398962771,1766027448533,-500.0,0.00032877,7]
[398962772,1766027448544,-500.0,0.00032877,7]
[398962773,1766027448554,-500.0,0.00032877,7]
[398962774,1766027448563,-500.0,0.00032877,7]
[398962775,1766027448573,-500.0,0.00032877,7]
[398962776,1766027448584,-500.0,0.00032877,7]
[398962777,1766027448595,-500.0,0.00032877,7]
[398962778,1766027448604,-500.0,0.00032877,7]
[398962779,1766027448614,-500.0,0.00032877,7]
[398962780,1766027448623,-500.0,0.00032877,7]
[398962781,1766027448633,-500.0,0.00032877,7]
[398962782,1766027448643,-500.0,0.00032877,7]
[398962783,1766027448653,-500.0,0.00032877,7]
[398962784,1766027448663,-500.0,0.00032877,7]
[398962785,1766027448673,-523.16265144,0.00032877,7]
[398962786,1766027448682,-500.0,0.00032877,7]
[398962787,1766027448693,-500.0,0.00032877,7]
[398962788,1766027448704,-500.0,0.00032877,7]
[398962789,1766027448713,-500.0,0.00032877,7]
[398962790,1766027448722,-500.0,0.00032877,7]
[398962791,1766027448731,-500.0,0.00032877,7]
[398962792,1766027448739,-500.0,0.00032877,7]
[398962793,1766027448749,-500.0,0.00032877,7]
[398962794,1766027448757,-500.0,0.00032877,7]
[398962795,1766027448766,-171.04,0.000329,14]
[398962796,1766027448775,-262.62,0.000329,14]
[398962797,1766027448784,-7959.20493029,0.00032957,2]
[398962798,1766027448793,-158.75317073,0.00032991,2]
[398962799,1766027448802,-552.151561,0.00033,14]
[398962800,1766027448811,-150.0,0.00033014,2]
[398962801,1766027448820,-180.24019343,0.00033151,2]
[398962802,1766027448829,-670.93,0.00033165,2]
[398962803,1766027448838,-7248.19034838,0.00033227,2]
[398962804,1766027448847,-778.42,0.00034327,30]
[398962805,1766027448857,-153.0,0.00034411,2]
[398962806,1766027448866,-153.0,0.00034411,2]
[398962807,1766027448875,-153.0,0.00034411,2]
[398962808,1766027448884,-153.0,0.00034422,2]
[398962809,1766027448893,-153.0,0.00034422,2]
[398962810,1766027448902,-153.0,0.00034422,2]
[398962811,1766027448913,-153.0,0.00034433,2]
[398962812,1766027448923,-153.0,0.00034433,2]
[398962813,1766027448932,-153.0,0.00034433,2]
[398962814,1766027448940,-153.0,0.00034444,2]
[398962815,1766027448950,-153.0,0.00034444,2]